bitfinex/quotes_ETHUSD_20241120
["timestamp","ask_amount","ask_price","bid_price","bid_amount"]
[1732067183066,0.55,3097.8,3096.8,0.322]
[1732067183358,0.89222354,3097.7,3096.8,0.322]
[1732067183555,0.89222354,3097.7,3096.9,0.06078276]
[1732067183764,0.89222354,3097.7,3096.8,0.322]
[1732067183914,0.89222354,3097.7,3097.0,0.06078276]
[1732067184256,0.89222354,3097.7,3096.8,0.322]
[1732067184257,0.8115,3097.7,3096.8,0.322]
[1732067184477,0.8115,3097.7,3097.1,0.06078276]
[1732067184769,0.8115,3097.7,3097.1,0.05059799]
[1732067185063,0.8115,3097.7,3097.2,0.06078276]
[1732067185365,0.8115,3097.7,3097.3,0.05058433]
[1732067185657,0.8115,3097.7,3097.2,0.322]
[1732067185858,0.8115,3097.7,3097.4,0.38278276]
[1732067186086,0.8115,3097.7,3097.4,0.322]
[1732067186225,0.8115,3097.7,3097.5,0.06078276]
[1732067186720,0.7975,3099.1,3097.5,0.06078276]
[1732067186913,0.7975,3098.9,3097.5,3.38278276]
[1732067187218,0.7975,3098.7,3097.6,0.06078276]
[1732067187413,0.7975,3098.7,3097.6,0.11134194]
[1732067187607,0.7975,3098.5,3097.6,0.06078276]
[1732067187835,0.7975,3098.5,3097.6,3.40411577]
[1732067188038,0.7975,3098.5,3097.6,0.40411577]
[1732067188228,0.7975,3098.5,3097.7,0.05054733]
[1732067188429,0.7975,3098.5,3097.3,0.05054733]
[1732067188703,0.7975,3098.5,3097.8,0.06078276]
[1732067188896,0.7975,3098.5,3097.6,3.0]
[1732067189137,0.7975,3098.5,3097.9,0.06078276]
[1732067189300,0.7975,3098.5,3097.7,0.3]
[1732067189500,0.7975,3098.5,3098.0,0.06078276]
[1732067189758,0.7975,3098.5,3097.6,3.0]
[1732067189912,0.7975,3098.3,3096.4,0.38254738]
[1732067190237,0.7975,3098.3,3097.6,3.0]
[1732067190423,0.7975,3098.3,3097.2,0.11134209]
[1732067190625,0.7975,3098.3,3097.6,3.0]
[1732067191240,0.7975,3098.3,3097.7,0.06078276]
[1732067191807,0.7975,3098.3,3097.6,3.0]
[1732067192007,0.7975,3098.3,3097.8,0.06078276]
[1732067192314,0.7975,3098.3,3097.9,3.0]
[1732067192857,6.22612,3099.7,3097.2,0.322]
[1732067192858,0.08069511,3098.2,3098.0,0.06071786]
[1732067193151,0.01,3099.1,3098.0,0.06071786]
[1732067193152,0.7975,3098.1,3098.0,0.06071786]
[1732067193460,0.7975,3098.1,3098.0,0.06069873]
[1732067193673,0.7975,3098.1,3097.0,0.08040772]
[1732067193878,0.7975,3098.1,3096.9,0.37258293]
[1732067193879,0.7975,3098.1,3098.0,0.05867544]
[1732067194180,0.7975,3098.1,3097.0,0.872]
[1732067194349,0.7975,3098.1,3098.0,0.05867544]
[1732067194733,0.7975,3098.1,3097.7,3.0]
[1732067194982,0.7975,3098.1,3098.0,0.05869207]
[1732067195133,0.7975,3098.1,3097.7,3.0]
[1732067195335,0.7975,3098.1,3097.0,1.0793]
[1732067195336,0.7975,3098.1,3097.8,0.05869207]
[1732067195688,0.7975,3098.1,3097.1,0.05057636]
[1732067195972,0.7975,3097.9,3096.9,0.0804963]
[1732067196273,0.01,3099.0,3097.5,3.0]
[1732067196274,0.7975,3097.7,3097.5,3.0]
[1732067196480,0.7975,3097.7,3097.0,0.05869623]
[1732067196777,0.7975,3097.7,3096.7,0.322]
[1732067197071,3.23719,3098.7,3096.5,0.0506082]
[1732067197072,0.87821555,3097.6,3096.5,0.322]
[1732067197290,0.7975,3097.6,3096.8,0.05871203]
[1732067197461,0.7975,3097.6,3096.5,0.322]
[1732067197772,0.7975,3097.6,3097.1,3.0]
[1732067198271,0.7975,3097.6,3097.2,0.0587137]
[1732067199737,0.08071844,3098.4,3097.2,0.0587137]
[1732067199738,0.83651793,3097.5,3097.2,0.0587137]
[1732067200164,0.83651793,3097.5,3097.1,3.0]
[1732067200334,0.83651793,3097.5,3096.2,0.79429593]
[1732067200335,0.83651793,3097.5,3097.3,0.05874531]
[1732067200673,0.83651793,3097.5,3096.2,0.322]
[1732067201112,0.83651793,3097.5,3096.3,0.05874531]
[1732067202317,0.83651793,3097.5,3096.7,3.0]
[1732067202467,0.83651793,3097.5,3096.3,0.05874531]
[1732067202672,0.83651793,3097.5,3096.7,3.0]
[1732067202866,0.83651793,3097.5,3096.7,3.3]
[1732067203165,0.83651793,3097.5,3096.8,0.05883601]
[1732067203372,0.7558,3097.5,3096.8,0.05883601]
[1732067203906,0.7558,3097.5,3096.7,3.0]
[1732067204116,0.7558,3097.5,3096.9,0.05883601]
[1732067204273,0.7558,3097.5,3096.7,3.0]
[1732067204473,0.7558,3097.5,3097.0,0.05883601]
[1732067204674,0.7558,3097.5,3096.7,0.3]
[1732067204882,0.7558,3097.5,3097.1,0.05883601]
[1732067205212,0.7558,3097.5,3097.2,0.05883601]
[1732067205581,0.7558,3097.5,3096.4,1.20112269]
[1732067205783,0.7558,3097.5,3096.5,0.05883601]
[1732067205982,0.7558,3097.5,3097.0,3.0]
[1732067206483,0.7558,3097.5,3097.1,0.05883601]
[1732067207035,0.83651909,3097.4,3097.1,0.05883601]
[1732067207231,0.7558,3097.4,3097.1,0.05883601]
[1732067207528,0.7558,3097.4,3097.2,0.05883601]
[1732067207886,0.7558,3097.4,3096.2,0.37263154]
[1732067208193,0.7558,3097.4,3097.3,0.05885514]
[1732067208385,0.7558,3097.4,3096.7,3.0]
[1732067208780,0.7558,3097.4,3096.8,0.05885514]
[1732067209007,0.83652847,3097.3,3096.8,0.05885514]
[1732067209521,0.83652847,3097.3,3096.9,0.05887595]
[1732067209834,0.83652847,3097.3,3096.1,0.322]
[1732067209989,0.83652847,3097.3,3096.7,3.0]
[1732067210188,0.83652847,3097.3,3096.1,0.322]
[1732067210389,0.83652847,3097.3,3096.7,3.0]
[1732067210987,0.83652847,3097.3,3096.8,0.05887678]
[1732067211240,0.7558,3097.1,3096.5,3.0]
[1732067211385,0.83653892,3097.1,3095.8,0.8285]
[1732067211592,0.83653892,3097.1,3095.6,0.37267085]
[1732067211930,0.83653892,3097.1,3095.7,0.05888261]
[1732067212232,0.83653892,3097.1,3095.6,0.40186144]
[1732067212936,0.55,3097.0,3095.7,0.05888261]
[1732067213137,0.55,3096.7,3095.7,0.05888261]
[1732067213432,3.23889,3097.1,3095.2,0.322]
[1732067213433,0.7558,3096.4,3095.2,0.322]
[1732067213636,0.83655754,3096.3,3095.8,0.05888261]
[1732067213792,0.83655754,3096.3,3095.2,0.322]
[1732067213998,0.83655754,3096.3,3095.3,0.05893087]
[1732067214520,0.83655754,3096.3,3095.7,3.0]
[1732067214725,0.7558,3096.3,3095.3,0.05893087]
[1732067214930,0.7558,3096.1,3095.2,0.322]
[1732067215099,0.7558,3096.1,3095.4,0.05893087]
[1732067215299,0.7558,3096.1,3095.2,0.322]
[1732067215532,0.7558,3096.1,3095.5,0.05893087]
[1732067215710,0.7558,3096.1,3095.2,0.322]
[1732067215899,0.7558,3096.1,3095.6,0.05893087]
[1732067216109,0.7558,3096.1,3095.5,3.0]
[1732067216433,0.7558,3096.1,3095.1,0.07927339]
[1732067216639,0.7558,3096.1,3095.0,1.20120895]
[1732067216819,0.7558,3096.1,3095.5,3.0]
[1732067217028,0.7558,3096.1,3095.1,0.05893087]
[1732067217244,0.7558,3096.1,3095.5,3.0]
[1732067217415,0.7558,3096.1,3095.5,0.3]
[1732067217614,0.7558,3096.1,3095.0,1.20120895]
[1732067217943,0.7558,3096.1,3095.6,0.05893087]
[1732067218138,0.7558,3096.1,3095.0,1.23114099]
[1732067218311,0.7558,3096.1,3095.7,0.05893087]
[1732067218511,0.7558,3096.1,3095.5,3.0]
[1732067218864,0.7558,3096.1,3095.8,3.0]
[1732067219250,0.7558,3096.1,3095.6,0.3]
[1732067219563,0.7558,3096.1,3095.9,0.05893087]
[1732067219718,0.7558,3096.1,3095.8,3.0]
[1732067219917,0.7558,3096.1,3095.8,0.3]
[1732067220110,0.7558,3097.2,3095.9,0.05893087]
[1732067220349,0.55,3097.0,3095.9,0.05893087]
[1732067220643,0.7558,3096.9,3095.8,3.0]
[1732067220823,0.7558,3096.9,3095.3,0.71252817]
[1732067220824,0.7558,3096.9,3096.2,3.0]
[1732067221232,0.08073664,3096.8,3096.0,0.8285]
[1732067221473,0.08073664,3096.8,3096.3,0.05893087]
[1732067221617,0.08073664,3096.8,3095.7,0.8285]
[1732067221817,0.01,3097.7,3096.4,0.05899498]
[1732067221818,0.7558,3097.4,3096.4,0.05899498]
[1732067222059,0.08074169,3097.7,3095.8,3.0]
[1732067222060,0.83654845,3097.3,3095.8,3.0]
[1732067222224,0.55,3097.2,3095.4,0.87917554]
[1732067222568,0.7558,3097.0,3096.1,3.0]
[1732067222773,0.7558,3097.0,3096.2,3.0]
[1732067222970,0.08073897,3096.9,3095.9,0.8285]
[1732067223272,0.08073897,3096.9,3096.3,0.05899498]
[1732067223595,0.08073897,3096.9,3095.6,0.322]
[1732067223596,0.7558,3096.8,3096.0,0.05899498]
[1732067223766,0.08073901,3096.7,3095.5,0.8285]
[1732067223930,0.08073901,3096.7,3096.2,3.0]
[1732067224134,0.7558,3096.8,3096.2,3.0]
[1732067224320,0.7558,3096.8,3096.3,0.05901994]
[1732067224771,0.7558,3096.8,3095.5,0.87917721]
[1732067224948,0.7558,3096.8,3096.4,0.05901994]
[1732067225154,0.7558,3096.8,3095.7,0.05066423]
[1732067225317,0.7558,3096.8,3096.5,0.05901994]
[1732067225523,0.7558,3096.8,3096.2,3.0]
[1732067225724,0.7558,3096.8,3096.6,0.05901994]
[1732067225951,0.7558,3096.8,3095.7,0.05066423]
[1732067226150,0.7558,3096.8,3096.2,3.0]
[1732067226667,0.7558,3096.8,3096.3,0.05901994]
[1732067227460,0.7558,3096.6,3095.5,0.8285]
[1732067227797,0.08073889,3096.7,3095.0,0.71250395]
[1732067227798,0.7558,3096.4,3095.2,0.0793038]
[1732067227959,0.83655709,3096.3,3095.6,0.05901994]
[1732067228162,0.83655709,3096.3,3095.1,0.8285]
[1732067228492,0.83655709,3096.3,3095.2,0.322]
[1732067228780,0.7558,3096.3,3095.4,0.322]
[1732067229140,0.7558,3096.3,3095.6,0.322]
[1732067229544,0.7558,3096.3,3095.8,0.322]
[1732067230287,0.7558,3096.3,3095.9,0.05901994]
[1732067231603,0.7558,3096.3,3095.7,0.322]
[1732067231779,0.7558,3096.3,3096.0,0.05901994]
[1732067232165,0.7558,3096.3,3095.4,0.322]
[1732067232370,0.7558,3096.3,3096.1,0.05901994]
[1732067232569,0.7558,3096.3,3095.4,0.322]
[1732067232778,0.7558,3096.3,3096.2,0.05901994]
[1732067233068,0.7558,3096.3,3095.4,0.05068759]
[1732067233482,0.7558,3096.3,3095.5,0.05901994]
[1732067233994,0.7558,3096.3,3095.7,0.322]
[1732067234516,0.7558,3096.3,3095.8,0.05904078]
[1732067234685,0.55,3096.1,3094.6,0.322]
[1732067234915,1.3739,3095.9,3094.7,0.05904078]
[1732067235114,0.8239,3095.7,3094.7,0.05904078]
[1732067235431,0.8239,3095.5,3094.7,0.05904078]
[1732067235591,0.55,3095.9,3094.7,0.05904078]
[1732067235592,0.90467673,3095.4,3094.7,0.05904078]
[1732067236331,0.90467673,3095.4,3094.3,0.322]
[1732067236489,0.90467673,3095.4,3094.8,3.0]
[1732067236838,0.90467673,3095.4,3094.9,0.05904078]
[1732067237340,0.90467673,3095.4,3095.0,0.05904078]
[1732067237705,0.90467673,3095.4,3094.1,0.07860773]
[1732067238036,0.90467673,3095.4,3094.0,0.33983969]
[1732067238037,0.90467673,3095.4,3094.3,3.0]
[1732067238201,0.90467673,3095.4,3094.4,0.30591191]
[1732067238727,0.90467673,3095.4,3094.5,0.05911908]
[1732067239827,0.8239,3095.4,3095.0,3.0]
[1732067240205,0.8239,3095.4,3095.1,0.05912824]
[1732067240731,0.8239,3095.4,3094.2,1.41523969]
[1732067240900,0.8239,3095.4,3095.0,3.0]
[1732067241131,0.8239,3095.4,3094.3,0.05074785]
[1732067241433,0.8239,3095.4,3095.0,3.0]
[1732067242115,0.8239,3095.4,3095.1,0.05912824]
[1732067242530,0.08077368,3095.3,3095.1,0.05912824]
[1732067242835,0.7778,3095.2,3094.1,0.07946384]
[1732067242992,0.7778,3095.2,3094.0,0.05077221]
[1732067243195,0.7778,3095.2,3094.2,0.05910908]
[1732067243431,0.7778,3095.2,3094.8,3.0]
[1732067243740,0.7778,3095.2,3094.0,0.05077221]
[1732067243741,0.7778,3095.2,3094.7,3.0]
[1732067243921,0.7778,3095.2,3094.8,0.05912074]
[1732067244100,0.7778,3095.2,3094.7,3.0]
[1732067244836,0.7778,3095.2,3094.9,0.05912074]
[1732067245000,0.7778,3095.2,3094.0,0.05077221]
[1732067245194,0.7778,3095.2,3095.0,0.05912074]
[1732067245401,0.7778,3095.2,3094.7,3.0]
[1732067245636,0.7593,3095.0,3093.9,1.41523969]
[1732067245832,0.84009088,3094.9,3094.8,0.05912074]
[1732067246038,0.84009088,3094.9,3093.2,0.322]
[1732067246039,0.84009088,3094.9,3093.3,0.87229005]
[1732067246208,1.39009088,3094.9,3094.8,0.05921821]
[1732067246412,0.7593,3094.7,3093.3,0.87230955]
[1732067246696,0.55,3094.8,3093.3,0.87230955]
[1732067246697,0.7593,3094.5,3093.4,0.05921821]
[1732067248328,0.63080322,3094.9,3093.4,0.05921821]
[1732067248329,0.84010322,3094.4,3093.4,0.05921821]
[1732067248638,0.84010322,3094.4,3093.1,0.0508186]
[1732067248797,0.84010322,3094.4,3093.5,0.05927322]
[1732067249151,0.7593,3094.4,3093.6,0.05927322]
[1732067249636,0.7593,3094.4,3093.5,0.87231029]
[1732067249976,0.7593,3094.4,3093.6,0.05926655]
[1732067250326,3.24039,3095.6,3093.6,0.05926655]
[1732067250327,0.7593,3095.3,3093.6,0.44991205]
[1732067250656,0.7593,3095.1,3094.1,3.8215]
[1732067250875,0.7593,3095.1,3094.5,3.0]
[1732067251028,0.7593,3095.1,3094.2,0.05076704]
[1732067251029,0.7593,3095.1,3094.6,3.3]
[1732067251360,0.7593,3095.8,3094.7,0.87225204]
[1732067251518,0.7593,3095.8,3094.7,0.8215]
[1732067251712,0.7593,3095.8,3094.8,0.05922737]
[1732067252256,0.08076771,3095.7,3094.9,3.0]
[1732067252470,0.08076771,3095.7,3094.8,0.05922737]
[1732067252622,0.7593,3095.8,3095.0,0.05922571]
[1732067252827,0.0807677,3095.7,3094.7,0.8215]
[1732067253010,0.0807677,3095.7,3095.1,0.05922571]
[1732067253212,0.55,3096.0,3094.9,3.0]
[1732067253417,0.55,3096.0,3095.2,0.05922571]
[1732067253418,0.7593,3095.8,3095.2,0.05922571]
[1732067253639,0.7593,3095.6,3094.9,3.0]
[1732067253838,0.08077238,3095.5,3094.4,0.8722446]
[1732067254355,0.08077238,3095.5,3094.5,0.05919654]
[1732067254561,0.7593,3095.6,3094.5,0.05919654]
[1732067254867,0.7593,3095.6,3094.9,3.0]
[1732067255020,0.7593,3095.6,3094.5,0.05919654]
[1732067255220,0.7593,3095.6,3095.0,0.05918405]
[1732067255421,0.7593,3095.6,3094.9,3.0]
[1732067255622,0.7593,3095.6,3095.1,0.05918405]
[1732067255932,0.08077239,3095.5,3095.2,0.05918904]
[1732067256257,0.7593,3095.4,3093.9,0.322]
[1732067256453,0.84008335,3095.3,3094.6,3.0]
[1732067256656,0.84008335,3095.3,3094.0,0.05918904]
[1732067256961,0.84008335,3095.3,3094.6,3.0]
[1732067257262,0.84008335,3095.3,3094.1,0.05918904]
[1732067257469,0.84008335,3095.3,3094.7,0.05916821]
[1732067257760,0.84008335,3095.3,3094.7,0.322]
[1732067257930,0.7593,3095.3,3094.7,0.322]
[1732067258134,0.7593,3095.3,3094.8,0.39136821]
[1732067258338,0.7593,3095.3,3094.8,0.05916821]
[1732067258574,0.7593,3095.3,3094.7,0.322]
[1732067258736,0.01,3096.6,3095.0,3.0]
[1732067258737,0.7593,3096.5,3095.0,3.0]
[1732067258939,0.01,3096.8,3095.1,0.36508812]
[1732067258940,0.7593,3096.3,3095.1,0.36508812]
[1732067259269,0.7593,3096.1,3095.1,0.38116988]
[1732067259437,0.7981,3095.9,3095.1,0.38116988]
[1732067260438,0.7981,3095.9,3095.3,3.0]
[1732067260758,0.7981,3095.9,3095.5,3.0]
[1732067260956,0.7981,3095.9,3095.6,0.05914155]
[1732067261213,0.7981,3095.9,3095.5,3.0]
[1732067261357,0.7981,3095.9,3095.7,0.05914155]
[1732067261543,0.7981,3095.9,3095.5,0.40741]
[1732067261738,0.7981,3095.9,3095.6,0.38114155]
[1732067263121,0.7981,3095.9,3095.6,0.05914155]
[1732067264531,0.7981,3096.7,3095.6,0.05914155]
[1732067264766,0.08075338,3096.6,3095.0,0.37271635]
[1732067264986,0.08075338,3096.6,3095.7,0.05911323]
[1732067265148,0.08075338,3096.6,3095.5,3.0]
[1732067265487,0.08075338,3096.6,3095.6,0.05911323]
[1732067265984,0.7981,3096.5,3095.7,0.0591149]
[1732067266348,0.7981,3096.5,3095.5,0.7521]
[1732067266676,0.7981,3096.5,3095.6,0.109802]
[1732067266877,0.7981,3096.5,3095.6,0.0591149]
[1732067267694,0.7981,3096.5,3095.6,0.44023639]
[1732067267978,0.7981,3096.5,3095.9,3.0]
[1732067268153,0.7981,3096.5,3096.0,3.0]
[1732067268348,0.7981,3096.5,3096.1,0.05910324]
[1732067271344,0.08073828,3097.3,3096.3,3.0]
[1732067271585,0.55,3097.8,3096.4,0.05910324]
[1732067271784,0.55,3097.6,3096.4,0.05910324]
[1732067271949,0.08073202,3097.5,3096.3,3.0]
[1732067272154,0.08073202,3097.5,3096.4,0.05900497]
[1732067272355,0.55,3097.4,3096.4,0.05900497]
[1732067272581,0.08073801,3097.3,3095.8,0.7728]
[1732067272760,0.08073801,3097.3,3096.5,0.05900497]
[1732067272966,0.08073801,3097.3,3096.3,3.0]
[1732067273167,0.08073801,3097.3,3096.4,0.05900497]
[1732067273462,0.08073801,3097.3,3096.5,0.05900497]
[1732067273695,0.08073801,3097.3,3096.3,3.0]
[1732067273895,0.08073801,3097.3,3096.4,0.05900497]
[1732067274100,0.08073801,3097.3,3095.8,0.85231739]
[1732067274290,0.8254,3097.2,3095.9,0.05900497]
[1732067274487,0.8254,3097.2,3096.3,3.0]
[1732067274691,0.08073174,3097.1,3096.4,0.3]
[1732067275002,0.08073174,3097.1,3096.5,0.05900497]
[1732067275308,0.8254,3097.2,3095.9,0.05066203]
[1732067275601,0.8254,3097.2,3096.3,3.0]
[1732067275762,0.8254,3097.2,3096.4,0.3]
[1732067276161,0.8254,3097.2,3096.5,0.05900497]
[1732067276464,0.08073043,3097.1,3096.5,0.05900497]
[1732067276682,0.90613042,3097.0,3096.5,0.05900497]
[1732067276886,0.8254,3096.8,3095.3,0.08046815]
[1732067277088,0.8254,3096.8,3095.1,0.8234439]
[1732067277089,0.9061523,3096.7,3095.1,0.7728]
[1732067277464,0.9061523,3096.7,3095.2,0.05699068]
[1732067277666,0.9061523,3096.7,3095.2,0.37899068]
[1732067277970,0.9061523,3096.7,3095.2,0.74466371]
[1732067278204,0.8254,3096.7,3095.6,0.322]
[1732067278368,0.08074345,3096.6,3095.6,0.322]
[1732067278562,0.08074345,3096.6,3095.7,0.05701732]
[1732067279002,0.08074345,3096.6,3095.9,3.0]
[1732067279176,0.8254,3096.7,3095.9,0.30570173]
[1732067279491,0.8254,3096.7,3095.7,0.05701732]
[1732067279492,0.8254,3096.7,3096.1,3.0]
[1732067279694,0.8254,3096.7,3095.7,0.05067513]
[1732067279893,0.8254,3096.7,3096.1,3.0]
[1732067280384,0.8254,3096.7,3095.8,0.37266248]
[1732067280585,0.8254,3096.7,3096.2,0.05701732]
[1732067280804,0.8254,3096.7,3096.3,3.30570173]
[1732067280969,0.8254,3096.7,3096.3,0.36271905]
[1732067281309,0.8254,3096.7,3096.3,3.37901732]
[1732067281615,0.8254,3096.7,3096.3,0.37901732]
[1732067281762,0.8254,3096.7,3096.3,3.37901732]
[1732067281971,0.8254,3096.7,3096.3,0.37901732]
[1732067282469,0.8254,3096.7,3096.3,3.37901732]
[1732067282719,0.8254,3096.7,3096.3,0.71691905]
[1732067282878,0.8254,3096.7,3096.3,0.37901732]
[1732067283306,0.8254,3096.7,3096.3,0.05701732]
[1732067283505,0.8254,3096.7,3096.3,3.0]
[1732067283809,0.8254,3096.7,3096.4,0.05700316]
[1732067284516,0.8254,3096.7,3096.5,0.05700316]
[1732067284712,0.8254,3096.7,3096.2,0.322]
[1732067284886,0.8254,3096.7,3096.6,0.05700316]
[1732067285087,0.8254,3096.7,3096.2,0.322]
[1732067285623,0.8254,3096.7,3096.3,0.05700316]
[1732067286075,0.9061417,3096.6,3096.3,0.05700316]
[1732067286274,0.9061417,3096.6,3095.6,0.322]
[1732067286513,0.9061417,3096.6,3095.7,0.05697818]
[1732067286713,0.9061417,3096.6,3095.3,0.322]
[1732067287021,0.9061417,3096.6,3095.8,0.05697818]
[1732067287317,0.9061417,3096.6,3095.3,0.322]
[1732067287485,0.9061417,3096.6,3095.2,0.322]
[1732067287675,0.9061417,3096.6,3095.3,0.05700149]
[1732067288115,0.9061417,3096.6,3095.6,0.322]
[1732067288324,0.9061417,3096.6,3095.6,0.6542]
[1732067288528,0.9061417,3096.6,3095.5,3.0]
[1732067288729,0.9061417,3096.6,3095.7,0.05702481]
[1732067289016,0.55,3096.3,3094.6,4.16847303]
[1732067289315,0.55,3096.3,3094.7,0.3395673]
[1732067289316,0.8254,3096.1,3094.7,0.3395673]
[1732067289522,0.7976,3095.9,3094.7,0.05702731]
[1732067289721,0.87836916,3095.8,3094.4,0.322]
[1732067289880,0.87836916,3095.8,3094.8,0.05702731]
[1732067290078,0.87836916,3095.8,3094.4,0.322]
[1732067290431,0.87836916,3095.8,3094.5,0.05702731]
[1732067290432,0.7976,3095.6,3094.5,0.05702731]
[1732067290577,0.7976,3095.4,3094.5,0.05702731]
[1732067290782,0.7976,3095.4,3093.9,0.05075865]
[1732067290990,0.7976,3095.4,3094.6,0.05702731]
[1732067291216,0.55,3095.7,3094.1,0.05076805]
[1732067291217,0.7976,3095.2,3094.1,0.05076805]
[1732067291523,0.7976,3095.2,3094.2,0.05702731]
[1732067291682,0.55,3095.7,3094.2,0.05702731]
[1732067291683,0.7976,3095.0,3094.6,3.0]
[1732067292307,0.7976,3095.0,3094.7,0.35702731]
[1732067292507,0.7976,3095.0,3094.7,0.05702731]
[1732067293281,0.7976,3095.0,3094.6,3.0]
[1732067293487,0.7976,3095.0,3094.7,0.05702731]
[1732067295130,0.7976,3095.0,3094.7,0.36273004]
[1732067295783,0.7976,3095.0,3094.7,0.05702731]
[1732067297124,0.7976,3095.0,3094.6,3.0]
[1732067297326,0.7976,3095.0,3094.8,0.05722721]
[1732067297617,0.7976,3095.0,3094.3,0.7599]
[1732067298124,0.7976,3095.0,3094.6,3.0]
[1732067298279,0.7976,3095.0,3094.4,0.05722721]
[1732067298485,0.7976,3095.0,3094.6,3.0]
[1732067298839,0.7976,3094.8,3093.9,0.36567303]
[1732067298984,0.7976,3094.6,3093.4,0.44563239]
[1732067299484,3.23061,3095.4,3093.4,0.44563239]
[1732067299485,0.08079489,3094.5,3093.4,0.44563239]
[1732067299829,0.7976,3094.8,3093.4,0.36567303]
[1732067299988,0.7976,3094.6,3093.4,0.36567303]
[1732067300322,0.7976,3094.4,3093.4,0.36567303]
[1732067301202,0.7976,3094.4,3093.5,0.05082484]
[1732067301387,0.7976,3094.4,3093.5,0.41649787]
[1732067301589,0.7976,3094.4,3093.5,0.36567303]
[1732067301814,0.08079851,3094.3,3094.0,3.0]
[1732067302020,0.7976,3094.4,3093.5,0.36567303]
[1732067302489,0.7976,3094.4,3094.0,3.0]
[1732067302732,0.7976,3094.4,3093.5,0.36567303]
[1732067302935,0.7976,3094.4,3094.0,3.0]
[1732067303087,0.7976,3094.4,3093.5,0.36567303]
[1732067303439,0.55,3093.9,3092.8,0.7599]
[1732067303582,0.55,3093.6,3092.6,0.36567303]
[1732067303786,0.0808208,3093.5,3092.7,0.322]
[1732067303982,0.7976,3093.4,3092.7,0.322]
[1732067304301,0.7976,3093.4,3092.0,0.35058265]
[1732067304302,0.55,3093.1,3091.9,0.1427049]
[1732067304613,0.7837,3092.7,3091.9,0.1427049]
[1732067304783,3.23286,3093.3,3091.9,0.1427049]
[1732067304784,0.55,3092.3,3091.9,0.1427049]
[1732067304983,1.3337,3092.1,3091.9,0.1427049]
[1732067305192,0.63086066,3092.0,3091.9,0.1427049]
[1732067305586,0.55,3092.0,3091.9,0.1427049]
[1732067306718,0.6308641,3092.0,3091.9,0.1427049]
[1732067309027,0.55,3092.0,3091.9,0.1427049]
[1732067309412,0.63087111,3092.0,3091.9,0.1427049]
[1732067310239,0.55,3092.0,3091.9,0.1427049]
[1732067311398,0.63086338,3092.0,3091.9,0.1427049]
[1732067311707,0.63086957,3092.0,3091.9,0.1427049]
[1732067312034,0.55,3092.0,3091.9,0.1427049]
[1732067313244,0.7837,3093.1,3091.9,0.19291257]
[1732067313545,0.08085583,3093.0,3091.9,0.19291257]
[1732067313695,0.08085583,3093.0,3091.9,0.1427049]
[1732067313901,0.08085583,3093.0,3092.0,0.05041204]
[1732067314300,0.08084917,3093.0,3092.0,3.05041204]
[1732067314527,0.7837,3093.1,3092.3,3.0]
[1732067314707,0.08084406,3093.0,3092.4,0.3]
[1732067315034,0.08084406,3093.0,3092.3,3.0]
[1732067315035,0.08084406,3093.0,3092.5,0.05040035]
[1732067315339,0.08084406,3093.0,3092.3,3.0]
[1732067315547,0.08084406,3093.0,3092.6,0.05037114]
[1732067315746,0.55,3092.9,3092.3,3.0]
[1732067315897,0.08084403,3092.8,3092.7,0.05037114]
[1732067316103,0.63084403,3092.8,3092.3,3.0]
[1732067316437,0.63084403,3092.8,3091.9,0.1427049]
[1732067316438,0.55,3092.9,3092.4,0.05037114]
[1732067316840,0.55,3092.9,3091.9,0.1427049]
[1732067316841,0.7837,3092.8,3091.9,0.1427049]
[1732067317001,1.3337,3092.6,3092.5,0.04868122]
[1732067317200,0.55,3092.3,3091.9,0.1427049]
[1732067317399,0.55,3092.0,3091.9,0.1427049]
[1732067318631,0.7837,3092.1,3091.9,0.1427049]
[1732067319351,0.08086901,3092.0,3091.9,0.1427049]
[1732067319854,0.08086874,3092.0,3091.9,0.1427049]
[1732067320155,0.7837,3092.1,3091.9,0.1427049]
[1732067321763,0.8645686,3092.1,3091.9,0.1427049]
[1732067322050,0.7837,3092.1,3091.9,0.1427049]
[1732067322716,0.7837,3092.1,3092.0,0.04693652]
[1732067327962,0.7837,3092.1,3091.9,0.1427049]
[1732067328228,0.08086446,3092.0,3091.9,0.1427049]
[1732067329278,0.86456503,3092.1,3091.9,0.1427049]
[1732067330260,0.0808651,3092.0,3091.9,0.1427049]
[1732067330758,0.7837,3092.1,3091.9,0.1427049]
[1732067333460,0.08086004,3092.4,3091.9,0.1427049]
[1732067333461,0.89856004,3092.4,3091.9,0.1427049]
[1732067334300,1.06859354,3092.4,3091.9,0.1427049]
[1732067334707,1.06859354,3092.4,3092.0,0.04698792]
[1732067335250,1.06859354,3092.4,3091.9,0.1427049]
[1732067335577,0.55,3092.3,3091.9,0.1427049]
[1732067335811,0.08086576,3092.2,3091.9,0.1427049]
[1732067336359,1.06859753,3092.4,3092.0,0.04698792]
[1732067336572,1.06859753,3092.4,3091.9,0.1427049]
[1732067336573,0.08086403,3092.4,3091.9,0.9698049]
[1732067336770,0.7676,3093.1,3092.1,0.04698792]
[1732067336985,0.08084296,3093.0,3092.0,3.0]
[1732067337301,0.08084296,3093.0,3092.2,0.04698792]
[1732067337502,0.08084296,3093.0,3091.9,0.9698049]
[1732067337711,0.08084296,3093.0,3092.3,0.04698792]
[1732067338017,0.801775,3093.2,3092.6,3.0]
[1732067338168,0.801775,3093.2,3092.7,0.3]
[1732067338374,0.08083369,3093.1,3092.7,0.34700283]
[1732067338575,0.08083369,3093.1,3092.7,0.04700283]
[1732067338820,0.08083369,3093.3,3092.7,0.04700283]
[1732067339025,0.01,3094.0,3092.7,0.04700283]
[1732067339026,0.7676,3093.7,3092.8,3.8271]
[1732067339171,0.7676,3093.7,3092.9,0.41491]
[1732067339172,0.55,3093.5,3092.9,0.41491]
[1732067339372,0.55,3093.5,3092.9,0.04697878]
[1732067339574,1.3176,3093.3,3092.9,0.04697878]